bitfinex/quotes_BTCUSD_20240627
["timestamp","ask_amount","ask_price","bid_price","bid_amount"]
[1719491162052,3.339605,61488.0,61487.0,0.0034591]
[1719491162235,3.339605,61488.0,61487.0,0.00651356]
[1719491162480,3.339605,61488.0,61487.0,0.00083679]
[1719491162690,2.930154,61488.0,61487.0,0.21105318]
[1719491162909,1.868585,61488.0,61487.0,0.77595318]
[1719491163111,1.868585,61488.0,61487.0,0.78073214]
[1719491163548,1.868585,61488.0,61487.0,0.57051575]
[1719491164610,1.868585,61488.0,61487.0,0.78073214]
[1719491165532,1.462645,61488.0,61487.0,0.94424798]
[1719491165932,1.462645,61488.0,61487.0,0.73403159]
[1719491166128,1.462645,61488.0,61487.0,0.57051575]
[1719491166335,1.462645,61488.0,61487.0,0.00561575]
[1719491167192,1.787911,61488.0,61487.0,0.00083679]
[1719491167399,1.787911,61488.0,61487.0,0.00656901]
[1719491169088,1.7877153,61488.0,61487.0,0.00656901]
[1719491170305,1.9523571,61488.0,61487.0,0.00656901]
[1719491170728,1.9523571,61488.0,61487.0,0.00083679]
[1719491171506,1.9523571,61488.0,61487.0,0.00656901]
[1719491171711,1.9523571,61488.0,61487.0,0.00083679]
[1719491171931,1.9523571,61488.0,61487.0,0.00656901]
[1719491172515,1.7877153,61488.0,61487.0,0.00656901]
[1719491174064,1.7877153,61488.0,61487.0,0.00083679]
[1719491174499,1.7877153,61488.0,61487.0,0.00656901]
[1719491174704,2.37317028,61488.0,61487.0,0.00656901]
[1719491174912,3.07652044,61488.0,61487.0,0.00656901]
[1719491175121,3.07652044,61488.0,61485.0,0.000924]
[1719491175122,2.24195716,61486.0,61485.0,0.000924]
[1719491175368,7.55637714,61486.0,61485.0,0.000924]
[1719491175512,7.31135814,61486.0,61485.0,0.000924]
[1719491175723,7.24641514,61486.0,61485.0,0.000924]
[1719491176581,7.21715114,61486.0,61485.0,0.000924]
[1719491177330,6.89657814,61486.0,61485.0,0.000924]
[1719491177535,6.88437914,61486.0,61485.0,0.000924]
[1719491178836,6.89837914,61486.0,61485.0,0.000924]
[1719491179864,6.83069614,61486.0,61485.0,0.000924]
[1719491181401,6.84469614,61486.0,61485.0,0.000924]
[1719491182289,6.84469614,61486.0,61478.0,0.08130346]
[1719491182290,1.463913,61479.0,61478.0,0.08130346]
[1719491182543,4.630419,61479.0,61478.0,0.08130346]
[1719491182714,4.967707,61479.0,61478.0,0.08651186]
[1719491182880,4.647705,61479.0,61478.0,0.08130346]
[1719491183448,4.602487,61479.0,61478.0,0.08130346]
[1719491183600,4.614487,61479.0,61478.0,0.08130346]
[1719491183799,4.508551,61479.0,61478.0,0.08130346]
[1719491184011,3.916146,61479.0,61478.0,0.08130346]
[1719491184210,4.045243,61479.0,61478.0,0.08130346]
[1719491185244,4.033243,61479.0,61478.0,0.08130346]
[1719491185446,5.190403,61479.0,61478.0,0.08130346]
[1719491185766,3.983742,61479.0,61478.0,0.08130346]
[1719491185974,3.910839,61479.0,61478.0,0.08130346]
[1719491186187,2.39444538,61479.0,61478.0,1.03183569]
[1719491186389,1.219347,61479.0,61478.0,1.03183569]
[1719491186595,1.219347,61479.0,61478.0,1.03618908]
[1719491186798,1.206347,61479.0,61478.0,1.03618908]
[1719491187216,1.206347,61479.0,61478.0,1.19072079]
[1719491187217,0.394062,61479.0,61478.0,1.19072079]
[1719491187423,0.1,61479.0,61478.0,1.19072079]
[1719491187635,0.650604,61482.0,61481.0,0.3647481]
[1719491187840,0.929372,61482.0,61481.0,1.10016394]
[1719491187979,0.929372,61482.0,61481.0,1.10451097]
[1719491188413,0.487951,61482.0,61481.0,1.10451097]
[1719491189312,0.487951,61482.0,61481.0,1.23620126]
[1719491189529,0.490951,61482.0,61481.0,1.23620126]
[1719491189735,0.590951,61482.0,61481.0,1.23620126]
[1719491190334,0.593951,61482.0,61481.0,1.23620126]
[1719491190538,0.76295,61482.0,61481.0,1.23620126]
[1719491190772,0.76295,61482.0,61481.0,1.10451097]
[1719491190897,1.088248,61482.0,61481.0,1.10451097]
[1719491192227,0.762946,61482.0,61481.0,1.10451097]
[1719491192427,0.762946,61482.0,61481.0,0.89429458]
[1719491194064,0.762946,61482.0,61481.0,1.10451097]
[1719491194277,0.593947,61482.0,61481.0,0.89429458]
[1719491195300,0.440268,61482.0,61481.0,1.10451097]
[1719491195556,0.268649,61482.0,61481.0,0.89429458]
[1719491195967,0.440268,61482.0,61481.0,0.89429458]
[1719491196524,0.765566,61482.0,61481.0,1.10451097]
[1719491196704,1.090864,61482.0,61481.0,1.10451097]
[1719491196908,1.090864,61482.0,61481.0,1.09429458]
[1719491198365,1.090864,61482.0,61481.0,1.10451097]
[1719491199144,1.416162,61482.0,61481.0,0.15887874]
[1719491199331,1.653162,61482.0,61481.0,0.15887874]
[1719491200189,1.653162,61482.0,61481.0,0.35887874]
[1719491201144,1.48524741,61482.0,61481.0,0.35887874]
[1719491201382,1.64789641,61482.0,61481.0,0.35887874]
[1719491201997,1.64789641,61482.0,61481.0,0.93999513]
[1719491202197,1.64789641,61482.0,61481.0,0.92977874]
[1719491202801,1.64789641,61482.0,61481.0,0.93999513]
[1719491203190,1.41089641,61482.0,61481.0,0.93999513]
[1719491203603,1.41089641,61482.0,61481.0,0.92977874]
[1719491203810,1.73619441,61482.0,61481.0,0.72977874]
[1719491205296,1.73619441,61482.0,61481.0,0.72765105]
[1719491205650,3.12873041,61482.0,61481.0,0.72765105]
[1719491205891,3.00639641,61482.0,61481.0,0.72765105]
[1719491206093,2.92966841,61482.0,61481.0,0.72765105]
[1719491206277,2.60762241,61482.0,61481.0,0.72765105]
[1719491206480,2.29033141,61482.0,61481.0,0.72765105]
[1719491206675,2.27821941,61482.0,61481.0,0.72765105]
[1719491207904,2.27821941,61482.0,61481.0,0.92765105]
[1719491208091,2.27821941,61482.0,61481.0,0.89116689]
[1719491208092,1.47686041,61482.0,61481.0,0.89116689]
[1719491208294,1.23927741,61482.0,61481.0,0.89116689]
[1719491209125,1.23927741,61482.0,61481.0,1.10138328]
[1719491211905,1.23927741,61482.0,61481.0,1.09116689]
[1719491212617,1.23927741,61482.0,61481.0,1.10138328]
[1719491213262,1.23927741,61482.0,61481.0,1.09116689]
[1719491213486,1.23927741,61482.0,61481.0,1.10138328]
[1719491213800,1.23927741,61482.0,61481.0,0.58046689]
[1719491213801,1.56457541,61482.0,61481.0,0.58046689]
[1719491213982,1.56457541,61482.0,61481.0,0.41695105]
[1719491214187,1.56457541,61482.0,61481.0,0.58046689]
[1719491214188,2.76984341,61482.0,61481.0,0.58046689]
[1719491214470,3.09514141,61482.0,61481.0,0.15675105]
[1719491214666,3.25986372,61482.0,61481.0,0.15675105]
[1719491214860,3.35466372,61482.0,61481.0,0.15675105]
[1719491215063,3.35466372,61482.0,61481.0,0.15240402]
[1719491215267,3.35466372,61482.0,61481.0,0.15759275]
[1719491215926,3.35466372,61482.0,61481.0,0.15240402]
[1719491216129,0.487971,61479.0,61478.0,0.000924]
[1719491216333,5.12641279,61479.0,61478.0,0.000924]
[1719491216467,5.313612,61479.0,61478.0,0.000924]
[1719491216642,5.690337,61479.0,61478.0,0.000924]
[1719491217257,4.453524,61479.0,61478.0,0.23463148]
[1719491217461,3.44930408,61479.0,61478.0,0.23463148]
[1719491217668,2.814916,61479.0,61478.0,0.23463148]
[1719491218048,2.814916,61479.0,61478.0,0.23862376]
[1719491218258,2.803916,61479.0,61478.0,0.23862376]
[1719491219084,2.813916,61479.0,61478.0,0.23862376]
[1719491219442,2.577016,61479.0,61478.0,0.23862376]
[1719491219930,2.586016,61479.0,61478.0,0.23862376]
[1719491220257,0.606971,61479.0,61478.0,1.45341133]
[1719491220473,1.257599,61479.0,61478.0,1.35559497]
[1719491220680,0.932285,61479.0,61478.0,1.35559497]
[1719491220852,1.257599,61479.0,61478.0,1.19325599]
[1719491221083,1.248599,61479.0,61478.0,1.19325599]
[1719491221287,1.255599,61479.0,61478.0,1.19325599]
[1719491222472,1.245599,61479.0,61478.0,1.19325599]
[1719491222888,1.245599,61479.0,61478.0,1.19425599]
[1719491223463,1.238599,61479.0,61478.0,1.19425599]
[1719491224068,1.238599,61479.0,61478.0,1.19525599]
[1719491224596,1.238599,61479.0,61478.0,1.31587399]
[1719491224836,0.913285,61479.0,61478.0,1.31587399]
[1719491225206,0.913285,61479.0,61478.0,1.19126371]
[1719491225635,0.913285,61479.0,61478.0,1.19604738]
[1719491229108,0.9387956,61479.0,61478.0,1.19604738]
[1719491229332,0.6134816,61479.0,61478.0,1.36838636]
[1719491229545,0.00084,61482.0,61481.0,0.53591986]
[1719491229695,0.00084,61482.0,61481.0,1.36801627]
[1719491229933,0.00084,61482.0,61481.0,1.37199495]
[1719491230164,0.00084,61482.0,61481.0,1.15177856]
[1719491230366,0.00084,61482.0,61481.0,1.57199495]
[1719491231162,0.00384,61482.0,61481.0,1.37599495]
[1719491231385,0.00284,61482.0,61481.0,1.37199495]
[1719491231591,0.00284,61482.0,61481.0,1.29315391]
[1719491231824,0.00084,61482.0,61481.0,1.29315391]
[1719491231970,0.00284,61482.0,61481.0,1.29915391]
[1719491236059,0.00284,61482.0,61481.0,1.66148762]
[1719491236466,0.00284,61482.0,61481.0,1.86148762]
[1719491236840,0.00084,61486.0,61485.0,1.71793625]
[1719491237050,0.00084,61486.0,61485.0,1.96157869]
[1719491237263,0.00084,61505.0,61504.0,0.53613625]
[1719491237482,0.00084,61505.0,61504.0,0.69847523]
[1719491237687,0.00084,61505.0,61504.0,0.7737005]
[1719491237894,0.163428,61505.0,61504.0,0.7737005]
[1719491238310,0.163428,61505.0,61504.0,0.7837005]
[1719491238521,0.00084,61505.0,61504.0,0.7737005]
[1719491238779,0.00084,61505.0,61504.0,0.7837005]
[1719491239057,0.00071073,61505.0,61504.0,0.92079055]
[1719491239535,0.00071073,61505.0,61504.0,1.18729055]
[1719491239760,0.00071073,61505.0,61504.0,1.50719055]
[1719491240000,0.00171073,61505.0,61504.0,1.51619055]
[1719491241684,0.00171073,61505.0,61504.0,1.71619055]
[1719491241888,0.00171073,61505.0,61504.0,1.91619055]
[1719491242106,0.00171073,61505.0,61504.0,2.40396355]
[1719491242317,0.02550661,61510.0,61509.0,1.51073625]
[1719491242522,0.0084,61522.0,61521.0,1.11073625]
[1719491242729,0.0084,61522.0,61521.0,1.27691369]
[1719491243614,0.0084,61522.0,61521.0,1.26691369]
[1719491244278,0.0084,61522.0,61521.0,1.27691369]
[1719491245738,0.0084,61522.0,61521.0,1.28091369]
[1719491245941,0.170943,61522.0,61521.0,1.28091369]
[1719491246088,0.0084,61522.0,61521.0,1.0706973]
[1719491246296,0.0094,61522.0,61521.0,1.41198342]
[1719491246510,0.0094,61522.0,61521.0,1.19176703]
[1719491246958,0.0094,61522.0,61521.0,1.17776703]
[1719491247335,0.0094,61522.0,61521.0,1.28791369]
[1719491247798,0.0094,61522.0,61521.0,1.0776973]
[1719491248002,0.0094,61522.0,61521.0,1.29791369]
[1719491248435,0.0094,61522.0,61521.0,1.28791369]
[1719491248638,0.0094,61522.0,61521.0,1.28091369]
[1719491249049,0.272943,61522.0,61521.0,1.29491369]
[1719491249224,0.0104,61522.0,61521.0,1.29491369]
[1719491249429,0.498029,61522.0,61521.0,1.29491369]
[1719491249638,0.498029,61522.0,61521.0,0.72031369]
[1719491249639,0.598029,61522.0,61521.0,0.72031369]
[1719491250250,0.923115,61522.0,61521.0,0.72031369]
[1719491250399,0.922115,61522.0,61521.0,0.70631369]
[1719491250601,1.247201,61522.0,61521.0,0.54397471]
[1719491250832,1.677287,61522.0,61521.0,0.17024248]
[1719491251037,1.677287,61522.0,61521.0,0.01783846]
[1719491251038,2.74701198,61522.0,61521.0,0.01783846]
[1719491251209,2.77001198,61522.0,61521.0,0.01783846]
[1719491251425,2.77001198,61522.0,61521.0,0.014]
[1719491251637,2.77001198,61522.0,61505.0,0.48782074]
[1719491251638,1.72036,61508.0,61507.0,0.15240402]
[1719491252002,1.138081,61507.0,61506.0,1.01395699]
[1719491252283,1.471811,61507.0,61506.0,0.31591986]
[1719491252454,1.471811,61507.0,61506.0,0.52613625]
[1719491253087,1.471811,61507.0,61506.0,0.31591986]
[1719491253862,1.478811,61507.0,61506.0,0.31691986]
[1719491254087,1.478811,61507.0,61506.0,0.001]
[1719491254088,2.38932198,61507.0,61506.0,0.001]
[1719491254290,1.803977,61507.0,61506.0,0.001]
[1719491255079,2.32448198,61507.0,61506.0,0.001]
[1719491255736,2.09075198,61507.0,61506.0,0.001]
[1719491255958,1.463364,61502.0,61501.0,0.15240402]
[1719491256140,0.487828,61497.0,61496.0,0.16351584]
[1719491256320,1.270672,61497.0,61496.0,0.31591986]
[1719491256561,1.270672,61497.0,61496.0,0.53148112]
[1719491256761,1.92111,61497.0,61496.0,0.16886071]
[1719491256976,1.92111,61497.0,61496.0,0.32126473]
[1719491258280,1.94008213,61497.0,61496.0,0.32126473]
[1719491259198,1.94908213,61497.0,61496.0,0.32226473]
[1719491259683,1.86443913,61497.0,61496.0,0.53148112]
[1719491259914,1.68504013,61497.0,61496.0,0.59285958]
[1719491260142,1.69004013,61497.0,61496.0,0.53248112]
[1719491260380,1.26223813,61497.0,61496.0,0.53248112]
[1719491260608,1.26923813,61497.0,61496.0,0.79298112]
[1719491261804,0.61880013,61497.0,61496.0,0.9435201]
[1719491262075,0.60680013,61497.0,61496.0,0.9435201]
[1719491262313,0.93201913,61497.0,61496.0,0.9435201]
[1719491262543,0.60680013,61497.0,61496.0,0.9435201]
[1719491262778,0.61380013,61497.0,61496.0,0.9435201]
[1719491263212,0.93601913,61497.0,61496.0,0.53148112]
[1719491263435,1.26123813,61497.0,61496.0,0.53148112]
[1719491263658,0.93201913,61497.0,61496.0,0.53148112]
[1719491264582,0.93401913,61497.0,61496.0,0.53248112]
[1719491265198,1.25923813,61497.0,61496.0,0.53248112]
[1719491266034,1.25923813,61497.0,61496.0,0.53148112]
[1719491266645,1.25723813,61497.0,61496.0,0.53148112]
[1719491267053,1.25723813,61497.0,61496.0,0.53548112]
[1719491267253,0.93201913,61497.0,61496.0,0.32526473]
[1719491267592,0.93201913,61497.0,61496.0,0.75850692]
[1719491267796,0.93201913,61497.0,61496.0,0.76250692]
[1719491268009,0.93201913,61497.0,61496.0,0.6978201]
[1719491268215,0.60680013,61497.0,61496.0,0.7078201]
[1719491268423,0.60680013,61497.0,61496.0,0.7048201]
[1719491269047,0.28158113,61497.0,61496.0,0.7048201]
[1719491269294,0.1,61497.0,61496.0,0.80746246]
[1719491269508,0.1,61501.0,61500.0,0.53613625]
[1719491269759,0.487768,61505.0,61504.0,0.53613625]
[1719491269970,0.487768,61505.0,61504.0,0.54149799]
[1719491270834,0.587768,61505.0,61504.0,1.10429799]
[1719491271044,0.1,61505.0,61504.0,1.26663697]
[1719491271252,0.262588,61505.0,61504.0,1.26663697]
[1719491271689,0.268588,61505.0,61504.0,1.25663697]
[1719491271923,0.91894,61505.0,61504.0,0.69383697]
[1719491272367,1.244116,61505.0,61504.0,0.69383697]
[1719491272581,1.244116,61505.0,61504.0,0.3212816]
[1719491272582,2.036352,61505.0,61504.0,0.3212816]
[1719491272986,2.034352,61505.0,61504.0,0.52613625]
[1719491273272,2.160848,61505.0,61504.0,0.31591986]
[1719491273501,2.160848,61505.0,61504.0,0.15878387]
[1719491273706,2.156848,61505.0,61504.0,0.15878387]
[1719491273922,2.156848,61505.0,61504.0,0.15340402]
[1719491274146,2.157848,61505.0,61504.0,0.15340402]
[1719491274592,2.483024,61505.0,61504.0,0.15340402]
[1719491274810,2.483024,61505.0,61501.0,0.01021639]
[1719491274811,0.325187,61503.0,61501.0,0.15240402]
[1719491275026,3.040605,61502.0,61501.0,0.15240402]
[1719491275237,3.32508,61502.0,61501.0,0.15240402]
[1719491277961,2.866745,61497.0,61496.0,0.31561543]
[1719491278160,2.091032,61496.0,61495.0,0.15240402]
[1719491278369,3.171317,61496.0,61495.0,0.15240402]
[1719491278583,2.968248,61496.0,61495.0,0.15240402]
[1719491278798,1.13834,61493.0,61492.0,0.31561543]
[1719491279004,2.343584,61493.0,61492.0,0.31561543]
[1719491279584,2.133825,61493.0,61492.0,0.31561543]
[1719491279828,1.982543,61493.0,61492.0,0.31561543]
[1719491280034,1.452213,61493.0,61492.0,0.52583182]
[1719491280239,1.777453,61493.0,61492.0,0.31561543]
[1719491280444,1.777453,61493.0,61492.0,0.32103344]
[1719491280653,1.777453,61493.0,61492.0,0.53124983]
[1719491280834,1.375009,61493.0,61492.0,1.42001725]
[1719491281095,0.9131,61493.0,61492.0,1.42001725]
[1719491281301,0.9131,61493.0,61492.0,1.36689227]
[1719491281517,1.226402,61493.0,61492.0,0.39691889]
[1719491281731,1.551642,61493.0,61492.0,0.4023369]
[1719491281949,1.551642,61493.0,61492.0,0.61255329]
[1719491282165,1.15216817,61493.0,61492.0,1.20655329]
[1719491282369,0.12550517,61493.0,61492.0,1.4301476]
[1719491282575,0.02550517,61493.0,61492.0,1.4401476]
[1719491282782,0.02650517,61493.0,61492.0,1.4411476]
[1719491282995,0.02650517,61493.0,61492.0,1.22093121]
[1719491283216,0.02650517,61493.0,61492.0,1.4401476]
[1719491283217,0.02550517,61493.0,61492.0,1.4401476]
[1719491283633,0.35351871,61522.0,61521.0,0.16321141]
[1719491283854,0.66367671,61522.0,61521.0,0.16321141]
[1719491284055,0.66367671,61522.0,61521.0,0.16855317]
[1719491284056,1.31931255,61522.0,61521.0,0.16855317]
[1719491284469,1.31931255,61522.0,61521.0,0.16321141]
[1719491284676,1.31931255,61522.0,61521.0,0.16855317]
[1719491284887,1.27169755,61522.0,61521.0,0.46007302]
[1719491285093,1.27169755,61522.0,61521.0,0.61247704]
[1719491285505,0.94661155,61522.0,61521.0,0.61247704]
[1719491285915,1.10133755,61522.0,61521.0,0.61247704]
[1719491286123,0.94661155,61522.0,61521.0,0.60713528]
[1719491286330,1.10133755,61522.0,61521.0,0.61247704]
[1719491286753,0.94661155,61522.0,61521.0,0.61247704]
[1719491287169,1.11202155,61522.0,61521.0,0.32195719]
[1719491287374,1.43710755,61522.0,61521.0,0.32195719]
[1719491287580,1.11202155,61522.0,61521.0,0.32195719]
[1719491287785,1.42510755,61522.0,61521.0,0.16855317]
[1719491287997,1.43310755,61522.0,61521.0,0.32195719]
[1719491288204,1.44510755,61522.0,61521.0,0.32295719]
[1719491288384,1.12002155,61522.0,61521.0,0.32295719]
[1719491288633,1.12002155,61522.0,61521.0,0.53317358]
[1719491289048,1.12002155,61522.0,61521.0,0.32295719]
[1719491289049,1.44510755,61522.0,61521.0,0.32295719]
[1719491289258,1.44510755,61522.0,61521.0,0.15974578]
[1719491289468,1.77019355,61522.0,61521.0,0.15974578]
[1719491290326,1.68200755,61522.0,61521.0,0.36996217]
[1719491290531,2.00709355,61522.0,61521.0,0.15974578]
[1719491290658,1.68200755,61522.0,61521.0,0.15974578]
[1719491290892,1.68200755,61522.0,61521.0,0.36996217]
[1719491291251,1.68200755,61522.0,61521.0,0.35974578]
[1719491291449,1.68200755,61522.0,61521.0,0.36996217]
[1719491291856,1.68200755,61522.0,61521.0,0.15974578]
[1719491292069,1.44510755,61522.0,61521.0,0.53317358]
[1719491292969,1.42493355,61522.0,61521.0,0.52295719]
[1719491293175,1.42493355,61522.0,61521.0,0.32295719]
[1719491293811,2.00841955,61522.0,61521.0,0.15974578]
[1719491294012,1.99641955,61522.0,61521.0,0.15874578]
[1719491294219,1.41293355,61522.0,61521.0,0.15874578]
[1719491294426,1.41453355,61522.0,61521.0,0.32295719]
[1719491294852,1.65143355,61522.0,61521.0,0.31888237]
[1719491295055,1.65143355,61522.0,61521.0,0.31761543]
[1719491295475,1.96851955,61522.0,61521.0,0.15340402]
[1719491295677,2.26851955,61522.0,61521.0,0.15340402]
[1719491295873,2.28151955,61522.0,61521.0,0.002]
[1719491296138,2.53991955,61522.0,61521.0,0.002]
[1719491296362,2.86500555,61522.0,61521.0,0.002]
[1719491296569,2.53991955,61522.0,61521.0,0.002]
[1719491296746,1.98151955,61522.0,61521.0,0.002]
[1719491296983,1.98235955,61522.0,61521.0,0.21221639]
[1719491297203,1.84912355,61522.0,61521.0,0.16521141]
[1719491297408,2.52560555,61522.0,61521.0,0.16521141]
[1719491297623,2.29433055,61522.0,61521.0,0.36521141]
[1719491298031,2.29433055,61522.0,61521.0,0.3754278]
[1719491298208,1.79896555,61522.0,61521.0,0.3754278]
[1719491298418,1.79896555,61522.0,61521.0,0.36521141]
[1719491298595,1.79896555,61522.0,61521.0,0.16521141]
[1719491299451,1.79896555,61522.0,61521.0,0.002]
[1719491299452,2.70225155,61522.0,61521.0,0.002]
[1719491299947,3.32430512,61522.0,61521.0,0.002]
[1719491300200,0.09784,61520.0,61505.0,0.15240402]
[1719491300406,0.03678859,61521.0,61486.0,0.4657]
[1719491300407,0.812955,61504.0,61503.0,0.31561543]
[1719491300617,2.385034,61504.0,61503.0,0.31561543]
[1719491301043,1.811671,61504.0,61503.0,0.52583182]
[1719491301670,1.486489,61504.0,61503.0,0.52583182]
[1719491301873,1.486489,61504.0,61503.0,0.85014535]
[1719491301874,1.149855,61504.0,61503.0,0.85014535]
[1719491302087,1.149855,61504.0,61503.0,0.52583182]
[1719491302088,1.35928,61504.0,61503.0,0.52583182]
[1719491302297,1.35928,61504.0,61503.0,0.31561543]
[1719491302298,1.684462,61504.0,61503.0,0.31561543]
[1719491302449,1.685462,61504.0,61503.0,0.31561543]
[1719491302658,1.685462,61504.0,61503.0,0.51561543]
[1719491302860,1.685462,61504.0,61503.0,0.52583182]
[1719491303055,1.685462,61504.0,61503.0,0.51561543]
[1719491303472,1.685462,61504.0,61503.0,0.52583182]
[1719491303886,1.684462,61504.0,61503.0,0.46067156]
[1719491304133,1.447562,61504.0,61503.0,0.46067156]
[1719491304354,1.447562,61504.0,61503.0,0.45045517]
[1719491304557,1.450562,61504.0,61503.0,0.46067156]
[1719491304760,1.451562,61504.0,61503.0,0.46067156]
[1719491305396,1.450562,61504.0,61503.0,0.46067156]
[1719491306017,1.450562,61504.0,61503.0,0.25045517]
[1719491306219,1.138154,61503.0,61502.0,0.08724376]
[1719491306427,0.162601,61500.0,61499.0,0.25045517]
[1719491306624,1.149907,61500.0,61499.0,0.25045517]
[1719491306833,2.243347,61500.0,61499.0,0.25045517]
[1719491307035,2.56855,61500.0,61499.0,0.25045517]
[1719491308288,2.402556,61500.0,61499.0,0.46067156]
[1719491308491,1.921826,61500.0,61499.0,0.45045517]
[1719491308905,1.921826,61500.0,61499.0,0.45445517]
[1719491309467,1.921826,61500.0,61499.0,0.46467156]
[1719491309708,1.800313,61500.0,61499.0,0.46467156]
[1719491309915,1.23821,61500.0,61499.0,1.01657156]
[1719491310341,1.23821,61500.0,61499.0,1.11932112]
[1719491310545,0.262601,61500.0,61499.0,1.2816601]
[1719491311117,0.1,61500.0,61499.0,1.2916601]
[1719491311322,0.325151,61510.0,61501.0,0.3834278]
[1719491311323,0.162597,61502.0,61501.0,0.3834278]
[1719491311537,0.262597,61502.0,61501.0,0.54576678]
[1719491311941,0.262597,61502.0,61501.0,0.53576678]
[1719491312142,0.587789,61502.0,61501.0,0.62301054]
[1719491312539,0.262597,61502.0,61501.0,0.62401054]
[1719491312816,0.587789,61502.0,61501.0,0.62401054]
[1719491313025,0.262597,61502.0,61501.0,0.63401054]
[1719491314501,0.263597,61502.0,61501.0,0.63401054]
[1719491314618,0.263597,61502.0,61501.0,0.62401054]
[1719491314819,0.588789,61502.0,61501.0,0.62401054]
[1719491315646,0.913981,61502.0,61501.0,0.62401054]
[1719491316243,0.101,61502.0,61501.0,0.46167156]
[1719491316512,0.101,61502.0,61501.0,0.25145517]
[1719491316513,0.588788,61502.0,61501.0,0.25145517]
[1719491316646,0.91398,61502.0,61501.0,0.25145517]
[1719491317076,0.588788,61502.0,61501.0,1.19381054]
[1719491317435,0.588788,61502.0,61501.0,0.97359415]
[1719491318832,0.588788,61502.0,61501.0,1.18381054]
[1719491319584,0.588788,61502.0,61501.0,0.97359415]
[1719491319804,0.588788,61502.0,61501.0,1.18381054]
[1719491319995,0.91398,61502.0,61501.0,1.18381054]
[1719491320210,0.91398,61502.0,61501.0,0.46167156]
[1719491320211,1.239172,61502.0,61501.0,0.46167156]
[1719491320496,1.549079,61502.0,61501.0,0.46167156]
[1719491320705,1.528026,61502.0,61501.0,0.46167156]
[1719491321557,1.239172,61502.0,61501.0,0.46167156]
[1719491323029,1.239172,61502.0,61501.0,0.25145517]
[1719491323232,1.239172,61502.0,61501.0,0.08824376]
[1719491323443,2.039924,61502.0,61501.0,0.25145517]
[1719491323654,1.947114,61502.0,61501.0,0.46167156]
[1719491323859,1.594876,61502.0,61501.0,0.46167156]
[1719491324303,1.455376,61502.0,61501.0,0.46167156]
[1719491324505,1.455376,61502.0,61501.0,1.05397156]
[1719491324506,1.239172,61502.0,61501.0,1.05397156]
[1719491324933,0.91398,61502.0,61501.0,1.21631054]
[1719491326274,1.239172,61502.0,61501.0,0.46167156]
[1719491327368,0.91398,61502.0,61501.0,0.46167156]
[1719491327780,0.91398,61502.0,61501.0,0.47167156]
[1719491327781,0.75478301,61502.0,61501.0,0.47167156]
[1719491327964,0.75478301,61502.0,61501.0,0.46167156]
[1719491328419,0.75478301,61502.0,61501.0,1.32385044]
[1719491328420,0.162596,61502.0,61501.0,1.32385044]
[1719491328629,0.487788,61502.0,61501.0,1.32385044]
[1719491329684,0.81298,61502.0,61501.0,1.20901054]
[1719491329899,0.91298,61502.0,61501.0,1.20901054]
[1719491330516,0.91298,61502.0,61501.0,1.20993454]
[1719491332455,0.91298,61502.0,61501.0,1.19993454]
[1719491332871,0.91298,61502.0,61501.0,1.20993454]
[1719491333076,0.587788,61502.0,61501.0,1.20993454]
[1719491333492,0.1,61502.0,61501.0,1.33915074]
[1719491333698,0.00084,61503.0,61501.0,1.33915074]
[1719491333699,0.00084,61503.0,61502.0,0.27045517]
[1719491333911,0.00084,61503.0,61502.0,1.21071054]
[1719491335554,0.00284,61503.0,61502.0,1.21071054]
[1719491335987,0.00384,61503.0,61502.0,1.21471054]
[1719491336189,0.00184,61503.0,61502.0,1.21471054]
[1719491336595,0.00284,61503.0,61502.0,1.21571054]
[1719491338792,0.00284,61503.0,61502.0,0.99549415]
[1719491338993,0.00284,61503.0,61502.0,1.21571054]
[1719491340368,0.00284,61503.0,61502.0,1.20549415]
[1719491340572,0.00284,61503.0,61502.0,1.34424591]
[1719491341360,0.00284,61503.0,61502.0,1.21571054]
[1719491342441,0.10284,61503.0,61502.0,1.21571054]
[1719491343411,0.00284,61503.0,61502.0,1.21571054]
[1719491344418,0.02833616,61503.0,61502.0,1.21571054]
[1719491344614,0.02833616,61503.0,61502.0,1.41571054]
[1719491345273,0.02833616,61503.0,61502.0,1.57804425]
[1719491346195,0.02793471,61503.0,61502.0,1.57804425]
[1719491346434,0.02793471,61503.0,61502.0,1.77804425]
[1719491347837,0.02793471,61503.0,61502.0,2.56367225]
[1719491348034,0.02793471,61503.0,61502.0,2.88886425]
[1719491348718,0.02693471,61503.0,61502.0,2.88486425]
[1719491349236,0.02793471,61503.0,61502.0,2.88986425]
[1719491349667,0.02693471,61503.0,61502.0,2.46464786]
[1719491349875,0.02693471,61503.0,61502.0,2.88486425]
[1719491350558,0.02593471,61503.0,61502.0,2.88386425]
[1719491350766,0.02593471,61503.0,61502.0,2.90380851]
[1719491351491,0.02593471,61503.0,61502.0,1.8446548]
[1719491351493,0.02593471,61503.0,61502.0,1.6586548]
[1719491351731,0.02593471,61503.0,61502.0,1.8586548]
[1719491352412,0.02593471,61503.0,61502.0,2.0072508]
[1719491352624,0.02593471,61503.0,61502.0,1.92622641]
[1719491352826,0.02593471,61503.0,61502.0,2.93180851]
[1719491353033,0.00084,61522.0,61521.0,0.47067156]
[1719491353262,0.00084,61522.0,61521.0,1.20981054]
[1719491354528,0.00084,61522.0,61521.0,1.40981054]
[1719491354734,0.00084,61522.0,61521.0,1.77214425]
[1719491355154,0.00084,61533.0,61532.0,1.64187156]
[1719491355360,0.00084,61533.0,61532.0,1.60421054]
[1719491355570,0.00084,61533.0,61532.0,1.96672754]
[1719491355775,0.00084,61533.0,61532.0,2.20362754]
[1719491355983,0.00084,61533.0,61532.0,2.36596125]
[1719491356193,0.0084,61537.0,61532.0,2.36596125]
[1719491356194,0.0084,61537.0,61534.0,1.55820556]
[1719491356456,0.0084,61537.0,61536.0,1.65603056]
[1719491356671,0.0084,61537.0,61536.0,2.38966954]
[1719491356885,0.0084,61537.0,61536.0,2.53521325]
[1719491358576,0.0094,61537.0,61536.0,2.54921325]
[1719491359712,0.0104,61537.0,61536.0,2.56321325]
[1719491359846,0.0104,61537.0,61536.0,1.97785425]
[1719491360030,0.0104,61537.0,61536.0,2.56321325]
[1719491360226,0.0104,61537.0,61536.0,2.23820025]
[1719491360659,0.0104,61537.0,61536.0,1.97785425]
[1719491360861,0.0104,61537.0,61536.0,0.66101054]
[1719491361064,0.0104,61537.0,61536.0,0.86101054]
[1719491361506,0.0104,61537.0,61536.0,1.26101054]
[1719491362483,0.0104,61537.0,61536.0,1.84111054]